{"text_format":"3","workbook":"xlsx","n_sheets":5,"sheets":["Информация о Чемпионате","Общая инфраструктура","Рабочее место конкурсантов","Расходные материалы","Личный инструмент конкурсанта"],"read":"whole","date_system":"1900"}

{"sheet":"Информация о Чемпионате","index":0,"n_rows":23,"n_cols":2,"rows_kept":23}
[]
[]
["Компетенция","Программные решения для бизнеса"]
["Наименование этапа Чемпионата","Региональный этап"]
["Субъект РФ (регион проведения)","Республика Карелия"]
["Базовая организация расположения конкурсной площадки","ГАПОУ РК «Петрозаводский архитектурно-строительный техникум»"]
["Адрес конкурсной площадки","г. Петрозаводск, ул. Мурманская, 30"]
["Даты проведения","09.02.2026 - 20.02.2026"]
["Главный эксперт","Мельник Наталья Леонидовна"]
["Электронная почта ГЭ","natashmelnik@yandex.ru"]
["Моб.телефон ГЭ",9214539614]
["Технический администратор площадки","Курников Евгений Анатольевич"]
["Электронная почта ТАП","e-ptgh@mail.ru"]
["Моб.телефон ТАП",89535320812]
["Количество конкурсантов ",5]
["Количество рабочих мест",5]
["Количество экспертов (ГЭ+ЭН+ИЭ)+ТАП",8]
[]
[]
["ЭН - эксперт-наставник"]
["ГЭ - главный эксперт"]
["ИЭ - индустриальный эксперт"]
["ТАП - технический администратор площадки"]

{"sheet":"Общая инфраструктура","index":1,"n_rows":138,"n_cols":8,"rows_kept":138,"merged":[[0,0,0,7],[1,0,1,7],[2,0,2,7],[3,0,3,7],[4,0,4,7],[5,0,5,7],[6,0,6,1],[6,2,6,7],[7,0,7,2],[7,3,7,7],[8,0,8,1],[8,2,8,7],[9,0,9,1],[9,2,9,3],[9,4,9,5],[9,6,9,7],[10,0,10,1],[10,2,10,3],[10,4,10,5],[10,6,10,7],[11,0,11,1],[11,2,11,7],[12,0,12,1],[12,2,12,7],[13,0,13,1],[13,2,13,7],[14,0,14,1],[14,2,14,7],[15,0,15,7],[16,0,16,7],[17,0,17,7],[18,0,18,7],[19,0,19,7],[20,0,20,7],[21,0,21,7],[22,0,22,7],[23,0,23,7],[24,0,24,7],[43,0,43,7],[44,0,44,7],[45,0,45,7],[46,0,46,7],[47,0,47,7],[48,0,48,7],[49,0,49,7],[50,0,50,7],[51,0,51,7],[52,0,52,7],[60,0,60,7],[61,0,61,7],[62,0,62,7],[63,0,63,7],[64,0,64,7],[65,0,65,7],[66,0,66,7],[67,0,67,7],[68,0,68,7],[69,0,69,7],[122,0,122,7],[125,0,125,7],[126,0,126,7],[127,0,127,7],[128,0,128,7],[129,0,129,7],[130,0,130,7],[131,0,131,7],[132,0,132,7],[133,0,133,7],[134,0,134,7]]}
[]
["Инфраструктурный лист для оснащения конкурсной площадки"]
[{"$f":"'Информация о Чемпионате'!B4","v":"Региональный этап"}]
["по компетенции"]
[{"$f":"'Информация о Чемпионате'!B3","v":"Программные решения для бизнеса"}]
["Основная информация о конкурсной площадке:"]
["Субъект Российской Федерации:",null,{"$f":"'Информация о Чемпионате'!B5","v":"Республика Карелия"}]
["Базовая организация расположения конкурсной площадки:",null,null,{"$f":"'Информация о Чемпионате'!B6","v":"ГАПОУ РК «Петрозаводский архитектурно-строительный техникум»"}]
["Адрес базовой организации: ",null,{"$f":"'Информация о Чемпионате'!B7","v":"г. Петрозаводск, ул. Мурманская, 30"}]
["Главный эксперт: ",null,{"$f":"'Информация о Чемпионате'!B9","v":"Мельник Наталья Леонидовна"},null,{"$f":"'Информация о Чемпионате'!B10","v":"natashmelnik@yandex.ru"},null,{"$f":"'Информация о Чемпионате'!B11","v":9214539614}]
["Технический администратор площадки: ",null,{"$f":"'Информация о Чемпионате'!B12","v":"Курников Евгений Анатольевич"},null,{"$f":"'Информация о Чемпионате'!B13","v":"e-ptgh@mail.ru"},null,{"$f":"'Информация о Чемпионате'!B14","v":89535320812}]
["Количество экспертов (ЭН+ГЭ+ИЭ) + ТАП:",null,{"$f":"'Информация о Чемпионате'!B17","v":8}]
["Количество конкурсантов: ",null,5]
["Количество рабочих мест: ",null,5]
["Даты проведения: ",null,{"$f":"'Информация о Чемпионате'!B8","v":"09.02.2026 - 20.02.2026"}]
["Общая зона конкурсной площадки (оборудование, инструмент, мебель)"]
["Требования к обеспечению зоны (коммуникации, площадь, сети, количество рабочих мест и др.): "]
[{"$f":"_xlfn.CONCAT(\"Площадь зоны: не менее \",$C$13*8,\" кв.м.\")","v":{"$error":"#NAME?"}}]
["Освещение: Допустимо верхнее искусственное освещение (не менее 500 люкс) "]
["Интернет : Подключение  ноутбуков к беспроводному интернету (с возможностью подключения к проводному интернету) \t"]
["Электричество: 2 подключения к сети по 220 Вольт\t"]
["Контур заземления для электропитания и сети слаботочных подключений (при необходимости) : не требуется"]
["Покрытие пола: ковролин на всю зону"]
["Подведение/ отведение ГХВС (при необходимости): не требуется"]
["Подведение сжатого воздуха (при необходимости): не требуется"]
["№","Наименование ","Краткие (рамочные) технические характеристики","Вид","Количество","Единица измерения","Итоговое количество","Рекомендации представителей индустрии (указывается конкретное оборудование)"]
[1,"Персональный компьютер в сборе","ЦПУ:\n - минимальная базовая тактовая частота 2.0 ГГц;\n - количество физических ядер не менее 4;\n - количество потоков не менее 4;\n ОЗУ:\n - объем не менее 8 Гб;\n ПЗУ:\n - SSD объемом не менее 500 Гб, либо SSHD/HDD объемом не менее 500 Гб;\n сетевой адаптер:\n - технология Ethernet стандарта 100BASE-T и/или 1000BASE-T;\n графический адаптер:\n - стандарт не ниже WXGA;\n - возможность подключения двух независимых мониторов.","Шт",1,"шт.",1]
[2,"Компьютерный монитор","27\" Монитор LG UltraGear 27GS85Q-B черный","Шт",1,"шт.",1]
[3,"Интерфейсный кабель для подключения монитора или проектора","VGA кабель 1.5м Male-To-Male для ПК, проектора, монитора","Шт",2,"шт.",2]
[4,"Клавиатура","Клавиатуры CBR ","Шт",1,"шт.",1]
[5,"Компьютерная мышь","Мышь проводная A4TECH OP-720, оптическая, USB, 1200dpi, цвет черный","Шт",1,"шт.",1]
[6,"Проектор с экраном","Критически важные характеристики позиции отсутствуют","Шт",1,"шт.",1]
[7,"Кабель питания","Кабель питания CEE 7/7 - IEC 320 C13","Шт",3,"шт.",3]
[8,"Сетевой фильтр","6 розеток, 5 метров","Шт",1,"шт.",1]
[9,"ПО операционная система","Windows 10 Pro х 64 v.22H2","ПО",1,"шт.",1]
[10,"ПО для просмотра документов в формате PDF","Adobe Acrobat Reader DC 2024.005.20399","ПО",1,"шт.",1]
[11,"ПО для архивации"," ПО 7-Zip v.25.01","ПО",1,"шт.",1]
[12,"ПО офисный пакет","Microsoft Office 2019","ПО",1,"шт.",1]
[13,"ПО веб-браузер"," ПО Яндекс Браузер  v.25.12.2.1322","ПО",1,"шт.",1]
[14,"Офисный стол","Ученический/офисный","Шт",{"$f":"ROUNDUP(E41/2,0)","v":7},"шт.",{"$f":"ROUNDUP(G41/2,0)","v":7}]
[15,"Офисный стул","Ученический/офисный","Шт",{"$f":"$C$12+$C$13","v":13},"шт.",{"$f":"$C$12+$C$13","v":13}]
[16,"Огнетушитель","Огнетушитель углекислотный ОУ-1","Охрана труда",1,"шт",{"$f":"E42","v":1}]
[17,"Кулер 19 л (холодная/горячая вода)","Важные технические характеристики отсутствуют","Охрана труда",1,"шт",1]
["Комната Конкурсантов (оборудование, инструмент, мебель) (по количеству конкурсантов)"]
["Требования к обеспечению зоны (коммуникации, площадь, сети, количество рабочих мест и др.): "]
[{"$f":"_xlfn.CONCAT(\"Площадь зоны: не менее \",$C$13*3,\" кв.м.\")","v":{"$error":"#NAME?"}}]
["Освещение: Допустимо верхнее искусственное освещение (не менее 500 люкс)"]
["Интернет: не требуется"]
["Электричество: не требуется"]
["Контур заземления для электропитания и сети слаботочных подключений (при необходимости): не требуется"]
["Покрытие пола: ковролин  - на всю зону"]
["Подведение/ отведение ГХВС (при необходимости) : не требуется"]
["Подведение сжатого воздуха (при необходимости): не требуется"]
["№","Наименование ","Краткие (рамочные) технические характеристики","Вид","Количество","Единица измерения","Итоговое количество","Рекомендации представителей индустрии (указывается конкретное оборудование)"]
[1,"Вешалка","Важные технические характеристики отсутствуют","Мебель",{"$f":"$C$13","v":5},"шт",{"$f":"$C$13","v":5}]
[2,"Офисный стол","Ученический/офисный","Мебель",{"$f":"ROUNDUP(E57/2,0)","v":3},"шт",{"$f":"ROUNDUP(G57/2,0)","v":3}]
[3,"Офисный стул","Ученический/офисный","Мебель",{"$f":"$C$13","v":5},"шт",{"$f":"$C$13","v":5}]
[4,"Мусорная корзина","Пластиковая","Оборудование",1,"шт",1]
[5,"Аптечка первой помощи работникам","Важные технические характеристики отсутствуют","Мебель",1,"шт",1]
[6,"Огнетушитель углекислотный ОУ-1 или аналог","Огнетушитель углекислотный ОУ-1","Мебель",1,"шт",1]
["Комната Экспертов (включая комнату Главного эксперта) (оборудование, инструмент, мебель) (по количеству экспертов)"]
["Требования к обеспечению зоны (коммуникации, площадь, сети, количество рабочих мест и др.): "]
[{"$f":"_xlfn.CONCAT(\"Площадь зоны: не менее \",$C$13*4,\" кв.м.\")","v":{"$error":"#NAME?"}}]
["Освещение: Допустимо верхнее искусственное освещение (не менее 500 люкс)"]
["Интернет: Подключение  ноутбуков к беспроводному интернету (с возможностью подключения к проводному интернету) \t"]
[{"$f":"_xlfn.CONCAT(\"Электричество: \",ROUNDUP($C$13/4,0)+2,\" подключения к сети по 220 Вольт\")","v":{"$error":"#NAME?"}}]
["Контур заземления для электропитания и сети слаботочных подключений (при необходимости): не требуется"]
["Покрытие пола: ковролин  - на всю зону"]
["Подведение/ отведение ГХВС (при необходимости) : не требуется"]
["Подведение сжатого воздуха (при необходимости): не требуется"]
["№","Наименование ","Краткие (рамочные) технические характеристики","Вид","Количество","Единица измерения","Итоговое количество","Рекомендации представителей индустрии (указывается конкретное оборудование)"]
[1,"Персональный компьютер в сборе","ЦПУ:\n - минимальная базовая тактовая частота 2.0 ГГц;\n - количество физических ядер не менее 4;\n - количество потоков не менее 4;\n ОЗУ:\n - объем не менее 16 Гб;\n ПЗУ:\n - SSD объемом не менее 500 Гб, либо SSHD/HDD объемом не менее 500 Гб;\n сетевой адаптер:\n - технология Ethernet стандарта 100BASE-T и/или 1000BASE-T;\n графический адаптер:\n - стандарт не ниже WXGA;\n - возможность подключения двух независимых мониторов.","Оборудование IT",{"$f":"ROUNDUP($C$13/4,0)+2","v":4},"шт",{"$f":"ROUNDUP($C$13/4,0)+2","v":4}]
[2,"Компьютерный монитор","ЖКД с диагональю не менее 21\"","Оборудование IT",{"$f":"(ROUNDUP($C$13/4,0)+2)*2","v":8},"шт",{"$f":"(ROUNDUP($C$13/4,0)+2)*2","v":8}]
[3,"Интерфейсный кабель для подключения монитора или проектора","VGA кабель 1.5м Male-To-Male для ПК, проектора, монитора","Оборудование IT",{"$f":"(ROUNDUP($C$13/4,0)+2)*2+1","v":9},"шт",{"$f":"(ROUNDUP($C$13/4,0)+2)*2+1","v":9}]
[4,"Клавиатура","Клавиатуры CBR ","Оборудование IT",{"$f":"ROUNDUP($C$13/4,0)+2","v":4},"шт",{"$f":"ROUNDUP($C$13/4,0)+2","v":4}]
[5,"Компьютерная мышь","Мышь проводная A4TECH OP-720, оптическая, USB, 1200dpi, цвет черный","Оборудование IT",4,"шт",4]
[6,"Смартфон/Планшет с ОС Android","Смартфон/планшет с операционной системой Android, версия не ниже 8, включая следующие компоненты:\n - Wi-Fi;\n - NFC;\n - Bluetooth, версия не ниже 4;\n - интерфейсный кабель для подключения к ПК.","Оборудование IT",{"$f":"ROUNDUP($C$13/4,0)+2","v":4},"шт",{"$f":"ROUNDUP($C$13/4,0)+2","v":4}]
[7,"Кабель питания","Кабель питания CEE 7/7 - IEC 320 C13","Оборудование IT",{"$f":"(ROUNDUP($C$13/4,0)+2)*3+2","v":14},"шт",{"$f":"(ROUNDUP($C$13/4,0)+2)*3+2","v":14}]
[8,"Источник бесперебойного питания","Источник бесперебойного питания мощностью от 600ВА","Оборудование IT",4,"шт",4]
[9,"Сетевой фильтр","6 розеток, 5 метров","Оборудование IT",4,"шт",4]
[10,"ПО операционная система","Windows 10 Pro х 64 v.22H2","ПО",4,"шт",4]
[11,"ПО для просмотра документов в формате PDF","Adobe Acrobat Reader DC 2024.005.20399","ПО",4,"шт",4]
[12,"ПО для архивации"," ПО 7-Zip v.25.01","ПО",4,"шт",4]
[13,"ПО офисный пакет","Microsoft Office 2019","ПО",4,"шт",4]
[14,"ПО веб-браузер"," ПО Яндекс Браузер  v.25.12.2.1322","ПО",4,"шт",4]
[15,"ПО редактор диаграмм","StarUML v7.0.0","ПО",4,"шт",4]
[16,"ПО Git или аналог"," ПО Git v. 2.52.0","ПО",4,"шт",4]
[17,"ПО .NET","Программная платформа .NET 9.0  включая следующие компоненты:-Avalonia    -NET Framework Core     NET Framework Tools        -NET Framework Design","ПО",4,"шт",4]
[18,"ПО среда разработки","Программное обеспечение Visual Studio Code включая:\n- C#\n- C# Dev Kit\n- C# Extensions\n- C# XML Documentation Comments\n- NuGet Package Manage\n- .NET Extension Pack\n- .NET MAUI\n- Avalonia for VSCode\n- Avalonia Templates\n- Xml Complete\n- Python\n- Python Debugger\n- Python Extension Pack\n- Python Path\n- Python Test Explorer for Visual Studio Code\n- Qt for Python\n- Python Development Extensions Pack\n- Java Extension Pack\n- Spring Boot Extension Pack\n- Maven for Java\n- Java\n- Gradle for Java\n- gradle-build-helper\n- Live Server\n- Path Intellisense\n- npm Intellisense \n- Vue.js Extension Pack\n- Angular Essentials\n- Flutter\n- React Native Tools\n- React Extension Pack\n- Node Essentials\n- Next.js CLI","ПО",4,"шт",4]
[19,"ПО среда разработки","Программное обеспечение JetBrains Rider \nВключая следующие компоненты:\n - Web Development;\n - Database Tools;\n - Version Controls;\n - Rider Xamarin Android Support;\n - AvaloniaRider.","ПО",{"$f":"ROUNDUP($C$13/4,0)+2","v":4},"шт",{"$f":"ROUNDUP($C$13/4,0)+2","v":4}]
[20,"ПО среда разработки","Программное обеспечение Android Studio v.2025.2.2 «Otter», включая следующие компоненты:\n - Android SDK Tools;\n - Android SDK Platform-Tools;\n - Android SDK Build-Tools;\n - Android SDK Platform;\n - USB Driver.","ПО",4,"шт",4]
[21,"Набор средств разработки","Android SDK v.25.0.1","ПО",4,"шт",4]
[22,"Набор средств разработки","Программное обеспечение Dart SDK v.3.11","ПО",4,"шт",4]
[23,"Набор средств разработки","Программное обеспечение Flutter SDK  v.3.38.7","ПО",4,"шт",4]
[24,"Набор средств разработки","Программное обеспечение Electron v.40.0","ПО",4,"шт",4]
[25,"Набор средств разработки","Программное обеспечение Vue.js  v2.7.16","ПО",4,"шт",4]
[26,"Набор средств разработки","Программное обеспечение Next.js v16.1.1-canary.10","ПО",4,"шт",4]
[27,"Набор средств разработки","Программное обеспечение Node.js v.25.2.1","ПО",4,"шт",4]
[28,"ПО среда разработки","Программное обеспечение WebStorm v.2025.3","ПО",4,"шт",4]
[29,"Библиотека","Программное обеспечение e(fx)clipse","ПО",4,"шт",4]
[30,"Набор средств разработки","Программное обеспечение Java SE 17 Development Kit","ПО",4,"шт",4]
[31,"ПО среда разработки","Программное обеспечение IntelliJ IDEA  Community Edition v.2025.3.1.1","ПО",4,"шт",4]
[32,"ПО среда разработки","Программное обеспечение ПО Eclipse IDE for Java v.7143","ПО",4,"шт",4]
[33,"Библиотека"," - SQLAlchemy\n - JDBC (Java Database Connectivity)\n - ADO.NET\n - ODBC (Open Database Connectivity)\n - MySQL Connector/C++","ПО",4,"шт",4]
[34,"ORM-инструмент","Программное обеспечение Hibernate ORM v.7.0 2025-08-10","ПО",4,"шт",4]
[35,"Программное обеспечение ","Anaconda3 v.2025.12.0 включая Python-3.11, включая следующие компоненты:\n - Kivy; \n - PyJNIus;\n - PyQt 6;\n - Pillow;\n - mariadb-connector;\n - postgresql.","ПО",4,"шт",4]
[36,"ПО среда разработки","Программное обеспечение PyCharm Community Edition v.2025.3.1","ПО",4,"шт",4]
[37,"Среда для разработки графических интерфейсов","Kivy Designer v.2.3.1 ","ПО",4,"шт",4]
[38,"Среда для разработки графических интерфейсов","Qt Designer 6 v.5.15. 12","ПО",4,"шт",4]
[39,"Текстовый редактор","Программное обеспечение текстовый редактор Sublime Text Build 4200","ПО",4,"шт",4]
[40,"Клиент для работы с API","Программное обеспечение Postman v.11.62.7-64","ПО",4,"шт",4]
[41,"ПО СУБД","DataGrip v. 2025.3.3","ПО",4,"шт",4]
[42,"ПО СУБД","dbeaver v. 25.3.3","ПО",4,"шт",4]
[43,"ПО СУБД","MySQL v.9.5.0","ПО",4,"шт",4]
[44,"МФУ цветное лазерное","с функцией поточного сканирования, скорость печати не менее 20 стр./мин, интерфейсы Ethernet и USB","Оборудование IT",1,"шт",1]
[45,"Интерфейсный кабель для подключения МФУ","Кабель USB Type-A, USB Type-B HP USB-кабель для принтера","Оборудование IT",1,"шт",1]
[46,"Веер цифр","Критически важные характеристики позиции отсутствуют","Оборудование",6,"шт",6]
[47,"Мусорная корзина","Пластиковая","Оборудование",3,"шт",3]
[48,"Шкаф с запирающимися ячейками","Критически важные характеристики позиции отсутствуют","Мебель",13,"ячеек",13]
[49,"Офисный стол","Критически важные характеристики позиции отсутствуют","Мебель",{"$f":"C12","v":8},"шт",{"$f":"E12","v":0}]
[50,"Компьютерный стул","Критически важные характеристики позиции отсутствуют","Мебель",{"$f":"E120*2","v":16},"шт",{"$f":"G120*2","v":0}]
[51,"Светильник настольный светодиодный","Критически важные характеристики позиции отсутствуют","Оборудование",{"$f":"ROUNDUP($C$13/4,0)+2","v":4},"шт",4]
["Охрана труда и техника безопасности"]
["№","Наименование ","Краткие (рамочные) технические характеристики","Вид","Количество","Единица измерения","Итоговое количество","Рекомендации представителей индустрии (указывается конкретное оборудование)"]
[1,"Аптечка","Аптечка первой помощи работникам (по приказу №169н, пластиковый чемодан)","Охрана труда",1,"шт",{"$f":"E125","v":1}]
["Складское помещение "]
["Требования к обеспечению зоны (коммуникации, площадь, сети, количество рабочих мест и др.): "]
["Площадь зоны: не менее 5 кв.м."]
["Освещение: Допустимо верхнее искусственное освещение (не менее 500 люкс)"]
["Интернет: не требуется"]
["Электричество: не требуется"]
["Контур заземления для электропитания и сети слаботочных подключений (при необходимости) : не требуется"]
["Покрытие пола: ковролин  - на всю зону"]
["Подведение/ отведение ГХВС (при необходимости): не требуется"]
["Подведение сжатого воздуха (при необходимости): не требуется"]
["№","Наименование ","Краткие (рамочные) технические характеристики","Вид","Количество","Единица измерения","Итоговое количество","Рекомендации представителей индустрии (указывается конкретное оборудование)"]
[1,"Стелаж","Критически важные характеристики позиции отсутствуют","Мебель",2,"шт",2]
[2,"Мусорная корзина","Пластиковая","Оборудование",1,"шт",1]

{"sheet":"Рабочее место конкурсантов","index":2,"n_rows":75,"n_cols":8,"rows_kept":75,"merged":[[0,0,0,7],[1,0,1,7],[2,0,2,7],[3,0,3,7],[4,0,4,7],[5,0,5,7],[6,0,6,1],[6,2,6,7],[7,0,7,2],[7,3,7,7],[8,0,8,1],[8,2,8,7],[9,0,9,1],[9,2,9,3],[9,4,9,5],[9,6,9,7],[10,0,10,1],[10,2,10,3],[10,4,10,5],[10,6,10,7],[11,0,11,1],[11,2,11,7],[12,0,12,1],[12,2,12,7],[13,0,13,1],[13,2,13,7],[14,0,14,1],[14,2,14,7],[15,0,15,7],[16,0,16,7],[17,0,17,7],[18,0,18,7],[19,0,19,7],[20,0,20,7],[21,0,21,7],[22,0,22,7],[23,0,23,7],[24,0,24,7],[70,0,70,7]]}
[]
["Инфраструктурный лист для оснащения конкурсной площадки"]
[{"$f":"'Информация о Чемпионате'!B4","v":"Региональный этап"}]
["по компетенции"]
[{"$f":"'Информация о Чемпионате'!B3","v":"Программные решения для бизнеса"}]
["Основная информация о конкурсной площадке:"]
["Субъект Российской Федерации:",null,{"$f":"'Информация о Чемпионате'!B5","v":"Республика Карелия"}]
["Базовая организация расположения конкурсной площадки:",null,null,{"$f":"'Информация о Чемпионате'!B6","v":"ГАПОУ РК «Петрозаводский архитектурно-строительный техникум»"}]
["Адрес базовой организации: ",null,{"$f":"'Информация о Чемпионате'!B7","v":"г. Петрозаводск, ул. Мурманская, 30"}]
["Главный эксперт: ",null,{"$f":"'Информация о Чемпионате'!B9","v":"Мельник Наталья Леонидовна"},null,{"$f":"'Информация о Чемпионате'!B10","v":"natashmelnik@yandex.ru"},null,{"$f":"'Информация о Чемпионате'!B11","v":9214539614}]
["Технический администратор площадки: ",null,{"$f":"'Информация о Чемпионате'!B12","v":"Курников Евгений Анатольевич"},null,{"$f":"'Информация о Чемпионате'!B13","v":"e-ptgh@mail.ru"},null,{"$f":"'Информация о Чемпионате'!B14","v":89535320812}]
["Количество экспертов (ЭН+ГЭ+ИЭ) + ТАП:",null,{"$f":"'Информация о Чемпионате'!B17","v":8}]
["Количество конкурсантов: ",null,{"$f":"'Информация о Чемпионате'!B15","v":5}]
["Количество рабочих мест: ",null,{"$f":"'Информация о Чемпионате'!B16","v":5}]
["Даты проведения: ",null,{"$f":"'Информация о Чемпионате'!B8","v":"09.02.2026 - 20.02.2026"}]
["Рабочее место Конкурсанта (основное оборудование, вспомогательное оборудование, инструмент (по количеству рабочих мест))"]
["Требования к обеспечению зоны (коммуникации, площадь, сети, количество рабочих мест и др.): "]
["Площадь зоны: не менее 4 кв.м."]
["Освещение: Допустимо верхнее искусственное освещение (не менее 500 люкс)"]
["Интернет: Подключение  ноутбуков к беспроводному интернету (с возможностью подключения к проводному интернету) \t"]
["Электричество: 1 подключение к сети по 220 Вольт\t"]
["Контур заземления для электропитания и сети слаботочных подключений (при необходимости) : не требуется"]
["Покрытие пола: ковролин на всю зону"]
["Подведение/ отведение ГХВС (при необходимости): не требуется"]
["Подведение сжатого воздуха (при необходимости): не требуется"]
["№","Наименование ","Краткие (рамочные) технические характеристики","Вид","Количество","Единица измерения","Итоговое количество","Рекомендации представителей индустрии (указывается конкретное оборудование)"]
[1,"Персональный компьютер в сборе","ЦПУ:\n - минимальная базовая тактовая частота 2.0 ГГц;\n - количество физических ядер не менее 4;\n - количество потоков не менее 4;\n ОЗУ:\n - объем не менее 8 Гб;\n ПЗУ:\n - SSD объемом не менее 500 Гб, либо SSHD/HDD объемом не менее 500 Гб;\n сетевой адаптер:\n - технология Ethernet стандарта 100BASE-T и/или 1000BASE-T;\n графический адаптер:\n - стандарт не ниже WXGA;\n - возможность подключения двух независимых мониторов.","Оборудование IT",1,"шт ( на 1 раб.место) ",{"$f":"$C$13*E27","v":5}]
[2,"Компьютерный монитор","ЖКД с диагональю не менее 21\"","Оборудование IT",2,"шт ( на 1 раб.место) ",{"$f":"$C$13*E28","v":10}]
[3,"Интерфейсный кабель для подключения монитора","VGA кабель 1.5м Male-To-Male для ПК, проектора, монитора","Оборудование IT",2,"шт ( на 1 раб.место) ",10]
[4,"Клавиатура","Клавиатуры CBR ","Оборудование IT",1,"шт ( на 1 раб.место) ",5]
[5,"Компьютерная мышь","Мышь проводная A4TECH OP-720, оптическая, USB, 1200dpi, цвет черный","Оборудование IT",1,"шт ( на 1 раб.место) ",5]
[6,"Коврик для компьютерной мыши","Критически важные характеристики позиции отсутствуют","Оборудование IT",1,"шт ( на 1 раб.место) ",5]
[7,"Смартфон/Планшет с ОС Android","Смартфон/планшет с операционной системой Android, версия не ниже 8, включая следующие компоненты:\n - Wi-Fi;\n - NFC;\n - Bluetooth, версия не ниже 4;\n - интерфейсный кабель для подключения к ПК.","Оборудование IT",1,"шт ( на 1 раб.место) ",5]
[8,"Кабель питания","Кабель питания CEE 7/7 - IEC 320 C13","Оборудование IT",3,"шт ( на 1 раб.место) ",15]
[9,"Источник бесперебойного питания","Источник бесперебойного питания мощностью от 600ВА","Оборудование IT",1,"шт ( на 1 раб.место) ",5]
[10,"Сетевой фильтр","6 розеток, 5 метров","Оборудование IT",1,"шт ( на 1 раб.место) ",5]
[12,"ПО операционная система","Windows 10 Pro х 64 v.22H2","ПО",1,"шт ( на 1 раб.место) ",5,"РЕД ОС 8.0"]
[13,"ПО для просмотра документов в формате PDF","ПО  Master PDF Editor ","ПО",1,"шт ( на 1 раб.место) ",5,"Atril 1.28.0"]
[14,"ПО для архивации"," ПО 7-Zip v.25.01","ПО",1,"шт ( на 1 раб.место) ",5,"Engrampa 1.28.1"]
[15,"ПО офисный пакет","Microsoft Office 2019","ПО",1,"шт ( на 1 раб.место) ",5,"Р7-Офис. Профессиональный (десктопная версия) 2024.4.2.721"]
[16,"ПО веб-браузер"," ПО Яндекс Браузер  v.25.12.2.1322","ПО",1,"шт ( на 1 раб.место) ",5,"Яндекс Браузер 24.12.4.1093"]
[17,"ПО редактор диаграмм","StarUML v7.0.0","ПО",1,"шт ( на 1 раб.место) ",5,"Р7-Графика 1.14.247171111"]
[18,"ПО Git или аналог"," ПО Git v. 2.52.0","ПО",1,"шт ( на 1 раб.место) ",5,"Git 2.48.1"]
[19,"ПО .NET","Программная платформа .NET 9.0 включая следующие компоненты:\n-Avalonia                                                                                                          -NET Framework Core                                                                                                                              -NET Framework Tools                                                                                                                              -NET Framework Design","ПО",1,"шт ( на 1 раб.место) ",5,".NET 9.0, Python-3.11, Java SE 17 Development Kit"]
[20,"ПО среда разработки","Программное обеспечение Visual Studio Code включая:\n- C#\n- C# Dev Kit\n- C# Extensions\n- C# XML Documentation Comments\n- NuGet Package Manage\n- .NET Extension Pack\n- .NET MAUI\n- Avalonia for VSCode\n- Avalonia Templates\n- Xml Complete\n- Python\n- Python Debugger\n- Python Extension Pack\n- Python Path\n- Python Test Explorer for Visual Studio Code\n- Qt for Python\n- Python Development Extensions Pack\n- Java Extension Pack\n- Spring Boot Extension Pack\n- Maven for Java\n- Java\n- Gradle for Java\n- gradle-build-helper\n- Live Server\n- Path Intellisense\n- npm Intellisense \n- Vue.js Extension Pack\n- Angular Essentials\n- Flutter\n- React Native Tools\n- React Extension Pack\n- Node Essentials\n- Next.js CLI","ПО",1,"шт ( на 1 раб.место) ",5,"Visual Studio Code v1.98.1"]
[21,"ПО среда разработки","Программное обеспечение JetBrains Rider \nВключая следующие компоненты:\n - Web Development;\n - Database Tools;\n - Version Controls;\n - Rider Xamarin Android Support;\n - AvaloniaRider.","ПО",1,"шт ( на 1 раб.место) ",5,"JetBrains Rider 2024.3.6"]
[22,"ПО среда разработки","Программное обеспечение Android Studio  v.2025.2.2 «Otter», включая следующие компоненты:\n - Android SDK Tools;\n - Android SDK Platform-Tools;\n - Android SDK Build-Tools;\n - Android SDK Platform;\n - USB Driver.","ПО",1,"шт ( на 1 раб.место) ",5,"Android Studio2024.3.1"]
[23,"Набор средств разработки","Android SDK v.25.0.1","ПО",1,"шт ( на 1 раб.место) ",5,"Android 10 SDK"]
[24,"Набор средств разработки","Программное обеспечение Dart SDK v.3.11","ПО",1,"шт ( на 1 раб.место) ",5,"Dart SDK v3.7.0"]
[25,"Набор средств разработки","Программное обеспечение Flutter SDK  v.3.38.7","ПО",1,"шт ( на 1 раб.место) ",5,"Flutter SDK v3.29.1"]
[26,"Набор средств разработки","Программное обеспечение Electron v.40.0","ПО",1,"шт ( на 1 раб.место) ",5,"Electron 35.0.1"]
[27,"Набор средств разработки","Программное обеспечение Vue.js  v2.7.16","ПО",1,"шт ( на 1 раб.место) ",5,"Vue.js v2.7.16"]
[28,"Набор средств разработки","Программное обеспечение Next.js v16.1.1-canary.10","ПО",1,"шт ( на 1 раб.место) ",5,"Next.js v15.2.2"]
[29,"Набор средств разработки","Программное обеспечение Node.js v.25.2.1","ПО",1,"шт ( на 1 раб.место) ",5,"Node.js v22.14.0"]
[30,"ПО среда разработки","Программное обеспечение WebStorm v.2025.3","ПО",1,"шт ( на 1 раб.место) ",5,"WebStorm v2024.3.4"]
[31,"Библиотека","Программное обеспечение e(fx)clipse","ПО",1,"шт ( на 1 раб.место) ",5,"e(fx)clipse 2.4.0 в составе Eclipse 4.6.0 SDK"]
[32,"Набор средств разработки","Программное обеспечение Java SE 17 Development Kit","ПО",1,"шт ( на 1 раб.место) ",5,"Java SE 17 Development Kit"]
[33,"ПО среда разработки","Программное обеспечение IntelliJ IDEA  Community Edition v.2025.3.1.1","ПО",1,"шт ( на 1 раб.место) ",5,"IntelliJ IDEA Community Edition v2024.3.4.1"]
[34,"ПО среда разработки","Программное обеспечение ПО Eclipse IDE for Java v.7143","ПО",1,"шт ( на 1 раб.место) ",5,"Eclipse IDE for Java Developers - 2025-03"]
[35,"Библиотека"," - SQLAlchemy\n - JDBC (Java Database Connectivity)\n - ADO.NET\n - ODBC (Open Database Connectivity)\n - MySQL Connector/C++","ПО",1,"шт ( на 1 раб.место) ",5]
[36,"ORM-инструмент","Программное обеспечение Hibernate ORM v.7.0 2025-08-10","ПО",1,"шт ( на 1 раб.место) ",5,"Hibernate ORM 7.1 series"]
[37,"Программное обеспечение ","Anaconda3 v.2025.12.0 включая Python-3.11, включая следующие компоненты:\n - Kivy; \n - PyJNIus;\n - PyQt 6;\n - Pillow;\n - mariadb-connector;\n - postgresql.","ПО",1,"шт ( на 1 раб.место) ",5,"Anaconda3 2025.06-0"]
[38,"ПО среда разработки","Программное обеспечение PyCharm Community Edition v.2025.3.1","ПО",1,"шт ( на 1 раб.место) ",5,"PyCharm Community Edition 2024.3.4"]
[39,"Среда для разработки графических интерфейсов","Kivy Designer v.2.3.1 ","ПО",1,"шт ( на 1 раб.место) ",5,"Kivy Designer 2.3.1"]
[40,"Среда для разработки графических интерфейсов","Qt Designer 6 v.5.15. 12","ПО",1,"шт ( на 1 раб.место) ",5,"Qt6 Designer"]
[41,"Текстовый редактор","Программное обеспечение текстовый редактор Sublime Text Build 4200","ПО",1,"шт ( на 1 раб.место) ",5,"Sublime Text Build 4200"]
[42,"Клиент для работы с API","Программное обеспечение Postman v.11.62.7-64","ПО",1,"шт ( на 1 раб.место) ",5,"Postman v7.33.1"]
[43,"ПО СУБД","DataGrip v. 2025.3.3","ПО",1,"шт ( на 1 раб.место) ",5,"DataGrip v2024.3.5"]
[44,"ПО СУБД","dbeaver v. 25.3.3","ПО",1,"шт ( на 1 раб.место) ",5,"DBeaver Community 25.0.0"]
[45,"ПО СУБД","MySQL v.9.5.0","ПО",1,"шт ( на 1 раб.место) ",5,"РЕД База Данных 5"]
["Охрана труда и техника безопасности"]
["№","Наименование ","Краткие (рамочные) технические характеристики","Вид","Количество","Единица измерения","Итоговое количество","Рекомендации представителей индустрии (указывается конкретное оборудование)"]
[1,"Аптечка","Аптечка первой помощи работникам (по приказу №169н, пластиковый чемодан)","Охрана труда",1,"шт",{"$f":"E73","v":1}]
[2,"Огнетушитель","Критически важные характеристики позиции отсутствуют","Охрана труда",1,"шт",1]
[3,"Кулер 19 л (холодная/горячая вода)","Критически важные характеристики позиции отсутствуют","Охрана труда",1,"шт",1]

{"sheet":"Расходные материалы","index":3,"n_rows":48,"n_cols":8,"rows_kept":48,"merged":[[0,0,0,7],[1,0,1,7],[2,0,2,7],[3,0,3,7],[4,0,4,7],[5,0,5,7],[6,0,6,1],[6,2,6,7],[7,0,7,2],[7,3,7,7],[8,0,8,1],[8,2,8,7],[9,0,9,1],[9,2,9,3],[9,4,9,5],[9,6,9,7],[10,0,10,1],[10,2,10,3],[10,4,10,5],[10,6,10,7],[11,0,11,1],[11,2,11,7],[12,0,12,1],[12,2,12,7],[13,0,13,1],[13,2,13,7],[14,0,14,1],[14,2,14,7],[15,0,15,7],[23,0,23,7],[44,0,44,7]]}
[]
["Инфраструктурный лист для оснащения конкурсной площадки"]
[{"$f":"'Информация о Чемпионате'!B4","v":"Региональный этап"}]
["по компетенции"]
[{"$f":"'Информация о Чемпионате'!B3","v":"Программные решения для бизнеса"}]
["Основная информация о конкурсной площадке:"]
["Субъект Российской Федерации:",null,{"$f":"'Информация о Чемпионате'!B5","v":"Республика Карелия"}]
["Базовая организация расположения конкурсной площадки:",null,null,{"$f":"'Информация о Чемпионате'!B6","v":"ГАПОУ РК «Петрозаводский архитектурно-строительный техникум»"}]
["Адрес базовой организации: ",null,{"$f":"'Информация о Чемпионате'!B7","v":"г. Петрозаводск, ул. Мурманская, 30"}]
["Главный эксперт: ",null,{"$f":"'Информация о Чемпионате'!B9","v":"Мельник Наталья Леонидовна"},null,{"$f":"'Информация о Чемпионате'!B10","v":"natashmelnik@yandex.ru"},null,{"$f":"'Информация о Чемпионате'!B11","v":9214539614}]
["Технический администратор площадки: ",null,{"$f":"'Информация о Чемпионате'!B12","v":"Курников Евгений Анатольевич"},null,{"$f":"'Информация о Чемпионате'!B13","v":"e-ptgh@mail.ru"},null,{"$f":"'Информация о Чемпионате'!B14","v":89535320812}]
["Количество экспертов (ЭН+ГЭ+ИЭ) + ТАП:",null,{"$f":"'Информация о Чемпионате'!B17","v":8}]
["Количество конкурсантов: ",null,{"$f":"'Информация о Чемпионате'!B15","v":5}]
["Количество рабочих мест: ",null,{"$f":"'Информация о Чемпионате'!B16","v":5}]
["Даты проведения: ",null,{"$f":"'Информация о Чемпионате'!B8","v":"09.02.2026 - 20.02.2026"}]
["Рабочее место Конкурсанта (расходные материалы по количеству конкурсантов)"]
["№","Наименование ","Краткие (рамочные) технические характеристики","Вид","Количество","Единица измерения","Итоговое количество","Рекомендации представителей индустрии (указывается конкретное оборудование)"]
[1,"Ручка"," Неавтоматическая","Расходные материалы",1,"шт ( на 1 конкурсанта) ",{"$f":"$C$14*E18","v":5}]
[2,"Карандаш HB","Твердость произвольная","Расходные материалы",1,"шт ( на 1 конкурсанта) ",{"$f":"$C$14*E19","v":5}]
[3,"Ластик","Ластик Attache Selection из синтетического каучука прямоугольный 61x21x11 мм","Расходные материалы",1,"шт ( на 1 конкурсанта) ",5]
[4,"Линейка","Линейка Attache Economy 30 см пластиковая ","Расходные материалы",1,"шт ( на 1 конкурсанта) ",5]
[5,"Папка-конверт на кнопке А4","Папка-конверт на кнопке Attache А4 синяя 180 мкм","Расходные материалы",1,"шт ( на 1 конкурсанта) ",5]
[6,"Бумага для офисной техники","Формат А4, плотность 80 г/м2, 500 листов","Расходные материалы",{"$f":"ROUNDUP($C$14/2,0)","v":3},"шт",{"$f":"ROUNDUP($C$14/2,0)","v":3}]
["Расходные материалы на всех конкурсантов и экспертов"]
["№","Наименование ","Краткие (рамочные) технические характеристики","Вид","Количество","Единица измерения","Итоговое количество","Рекомендации представителей индустрии (указывается конкретное оборудование)"]
[1,"Катридж для цветного МФУ","Критически важные характеристики позиции отсутствуют","Расходные материалы",{"$f":"ROUNDUP(($E$23+$E$27)/4,0)","v":2},"шт",{"$f":"ROUNDUP(($E$23+$E$27)/4,0)","v":2}]
[2,"Бумага для офисной техники","Белая, А4, пачка 500 листов","Расходные материалы",{"$f":"$C$14","v":5},"шт",{"$f":"$C$14","v":5}]
[3,"Папка-планшет ","Папка-планшет с зажимом Attache A4 пластиковая черная","Расходные материалы",{"$f":"$C$14*2","v":10},"шт",{"$f":"$C$14*2","v":10}]
[4,"Скоросшиватель пластиковый","Скоросшиватель пластиковый Комус А4 до 100 листов синий (толщина обложки 0.13/0.18 мм)","Расходные материалы",{"$f":"$C$14*2","v":10},"шт",{"$f":"$C$14*2","v":10}]
[5,"Бумага для флипчартов","Формат А3","Расходные материалы",1,"упак",1]
[6,"Клейкая лента канцелярская двусторонняя","Клейкая лента канцелярская Kores прозрачная двусторонняя 15 мм x 5 м","Расходные материалы",{"$f":"ROUNDUP(($E$23+$E$27)/4,0)","v":2},"шт",{"$f":"ROUNDUP(($E$23+$E$27)/4,0)","v":2}]
[7,"Ручка шариковая","Ручка шариковая неавтоматическая Bic Round Stic синяя (толщина линии 0.32 мм)","Расходные материалы",{"$f":"$C$14*3","v":15},"шт",{"$f":"$C$14*3","v":15}]
[8,"Степлер","Степлер Attache 8215 до 25 листов черный (скобы № 24/6, 26/6)","Расходные материалы",1,"шт",1]
[9,"Скобы для степлера","Упаковка 1000 шт","Расходные материалы",1,"шт",1]
[10,"Скрепки","Скрепки канцелярские 28 мм Attache металлические с полимерным покрытием (100 штук в упаковке)","Расходные материалы",1,"коробка",1]
[11,"Файл-вкладыш, плотный","А4, упаковка 100 шт","Расходные материалы",1,"шт",1]
[12,"Набор маркеров (перманентные)","4 цвета, количество в упаковке 4 шт","Расходные материалы",1,"упаковка",1]
[13,"Ножницы ","Ножницы 195 мм Attache с пластиковыми прорезиненными анатомическими ручками бирюзового/черного цвета","Расходные материалы",1,"шт",1]
[14,"Мешки для мусора","60 литров, рулон 30 шт","Расходные материалы",1,"рулон",1]
[15,"Стакан одноразовый для холодных напитков","200 мл., упаковка 100 шт","Расходные материалы",{"$f":"ROUNDUP($C$13*20/100,0)","v":1},"упаковка",{"$f":"ROUNDUP($C$13*20/100,0)","v":1}]
[16,"Стакан одноразовый термостойкий","200 мл., упаковка 50 шт","Расходные материалы",{"$f":"ROUNDUP($C$13*20/50,0)","v":2},"упаковка",{"$f":"ROUNDUP($C$13*20/50,0)","v":2}]
[17,"Флеш накопитель","16 Гб","Расходные материалы",1,"шт",1]
[18,"Вода 19 литров","Критически важные характеристики позиции отсутствуют","Расходные материалы",{"$f":"ROUNDUP($C$13*2/5,0)","v":2},"шт",{"$f":"ROUNDUP($C$13*2/5,0)","v":2}]
[19,"Стикеры","С клейкой полосой. 100 шт. в блоке. ","Расходные материалы",{"$f":"ROUNDUP($C$13*2/5,0)","v":2},"шт",{"$f":"ROUNDUP($C$13*2/5,0)","v":2}]
["Охрана труда и техника безопасности"]
["№","Наименование ","Краткие (рамочные) технические характеристики","Вид","Количество","Единица измерения","Итоговое количество","Рекомендации представителей индустрии (указывается конкретное оборудование)"]
[1,"Аптечка","Аптечка первой помощи работникам (по приказу №169н, пластиковый чемодан)","Охрана труда",1,"шт",1]
[2,"Огнетушитель углекислотный ОУ-1 или аналог","Вместимость баллона 1,34 л., время выхода СО2 6 сек.","Охрана труда",1,"шт",1]

{"sheet":"Личный инструмент конкурсанта","index":4,"n_rows":11,"n_cols":7,"rows_kept":11,"merged":[[0,0,0,6],[1,0,1,6],[2,0,2,6],[3,0,3,6],[4,0,4,6],[5,0,5,6]]}
[]
["Инфраструктурный лист для оснащения конкурсной площадки"]
[{"$f":"'Информация о Чемпионате'!B4","v":"Региональный этап"}]
["по компетенции"]
[{"$f":"'Информация о Чемпионате'!B3","v":"Программные решения для бизнеса"}]
["Личный инструмент конкурсанта"]
["№","Наименование ","Краткие (рамочные) технические характеристики","Вид","Количество","Единица измерения","Примечание "]
[1,"Клавиатура","Проводная, подключение по USB",null,1,"штука"]
[2,"Компьютерная мышь","Проводная, подключение по USB",null,1,"штука"]
[3,"Наушники","Проводные, разъём Jack 3,5",null,1,"штука"]
[4,"Коврик для компьютерной мыши","Критически важные характеристики позиции отсутствуют",null,1,"штука"]